bitfinex/quotes_SOLUSD_20220105
["timestamp","ask_amount","ask_price","bid_price","bid_amount"]
[1641414083484,2.8356452,158.14,158.04,7.51]
[1641414083886,2.5756452,158.14,158.05,23.86511428]
[1641414084686,1.76919783,158.17,158.06,7.51]
[1641414084886,1.76919783,158.17,158.06,8.01]
[1641414085086,1.76919783,158.17,158.12,16.06231842]
[1641414085890,1.76919783,158.2,158.12,24.07231842]
[1641414086692,2.52409669,158.21,158.12,24.07231842]
[1641414086889,2.52409669,158.21,158.12,33.81531842]
[1641414087492,2.78409669,158.21,158.12,33.81531842]
[1641414087692,2.78409669,158.21,158.12,33.55531842]
[1641414087891,2.52409669,158.21,158.12,33.55531842]
[1641414088593,2.52409669,158.21,158.12,17.493]
[1641414088794,2.52409669,158.21,158.12,7.51]
[1641414088991,12.00859669,158.21,158.04,74.3766]
[1641414089195,13.48175566,158.21,158.1,0.5]
[1641414089392,12.26859669,158.21,158.05,0.5]
[1641414089595,12.26859669,158.21,158.09,25.27962408]
[1641414089891,12.26859669,158.21,158.09,25.77962408]
[1641414090293,14.03779452,158.21,158.09,25.77962408]
[1641414090792,14.03779452,158.21,158.09,35.26452408]
[1641414091195,1.76919783,158.22,158.09,42.77452408]
[1641414091393,1.76919783,158.22,158.09,43.03452408]
[1641414091793,4.8046031,158.23,158.09,42.77452408]
[1641414092192,2.18059085,158.22,158.09,42.77452408]
[1641414092592,2.18059085,158.22,158.09,8.01]
[1641414092795,2.18059085,158.22,158.07,9.4862]
[1641414092993,3.91374982,158.22,158.07,9.9862]
[1641414093192,7.51,158.21,157.98,7.51]
[1641414093393,9.4891,158.13,157.98,7.51]
[1641414093595,7.51,158.19,158.0,27.60009937]
[1641414093792,150.13929783,158.2,158.0,35.11009937]
[1641414093793,0.26,158.13,158.0,35.11009937]
[1641414094393,2.02919783,158.2,158.0,35.11009937]
[1641414094595,2.48855462,158.16,158.0,35.87009937]
[1641414094794,2.48855462,158.16,158.08,9.4853]
[1641414094996,2.74855462,158.16,158.06,12.32733333]
[1641414095194,2.74855462,158.16,158.02,7.51]
[1641414095394,2.74855462,158.16,157.98,7.51]
[1641414095796,3.24855462,158.16,157.98,8.01]
[1641414096199,12.73575462,158.16,158.01,9.489]
[1641414096396,12.73575462,158.16,158.02,11.9740862]
[1641414096696,12.23575462,158.16,158.02,11.9740862]
[1641414096898,12.23575462,158.16,158.02,12.4740862]
[1641414097698,12.23575462,158.16,158.02,0.5]
[1641414097899,12.23575462,158.16,158.0,0.5]
[1641414098098,20.24575462,158.16,157.98,0.5]
[1641414098497,20.24575462,158.16,157.94,8.01]
[1641414098700,20.24575462,158.16,157.95,23.15794726]
[1641414098898,1.47315897,158.15,157.95,0.5]
[1641414099098,9.4941,158.05,157.95,0.5]
[1641414099498,0.26,158.05,157.93,7.51]
[1641414099798,0.26,158.05,157.94,25.04350687]
[1641414099999,257.3857535,158.14,157.94,34.45122116]
[1641414100200,9.49,158.11,158.0,9.4892]
[1641414100401,2.43648225,158.1,158.01,14.88392583]
[1641414100602,1.76919783,158.07,158.01,14.88392583]
[1641414101206,1.76919783,158.07,158.01,15.38392583]
[1641414101404,4.55740695,158.07,158.01,15.38392583]
[1641414101603,2.78820912,158.07,158.01,15.38392583]
[1641414101804,11.25859783,158.12,158.01,15.38392583]
[1641414102203,11.51859783,158.12,158.01,15.38392583]
[1641414102404,1.76919783,158.11,158.01,15.38392583]
[1641414102604,2.02919783,158.11,158.01,15.38392583]
[1641414102804,2.21347597,158.1,158.01,14.88392583]
[1641414103006,1.76919783,158.11,158.01,15.64392583]
[1641414103208,1.76919783,158.11,158.02,7.51]
[1641414103406,1.76919783,158.11,158.02,8.01]
[1641414103605,1.76919783,158.11,158.02,8.27]
[1641414104005,2.85465984,158.13,158.03,1.5817942]
[1641414104205,2.85465984,158.13,158.06,9.4858]
[1641414104405,2.85465984,158.13,158.06,42.53930687]
[1641414104607,2.85465984,158.13,158.06,17.4958]
[1641414105406,2.85465984,158.13,158.06,8.01]
[1641414106006,2.85465984,158.13,158.06,35.93200043]
[1641414106309,1.76919783,158.15,158.06,35.93200043]
[1641414106506,1.76919783,158.15,158.06,45.41790043]
[1641414106708,2.02919783,158.15,158.06,45.41790043]
[1641414106907,2.02919783,158.15,158.06,17.4959]
[1641414107108,2.40347413,158.14,158.06,17.4959]
[1641414107311,2.40347413,158.14,158.06,0.5]
[1641414107508,12.15167413,158.14,158.02,1.5817942]
[1641414107908,30.2083148,158.13,158.02,1.5817942]
[1641414108113,1.76919783,158.12,158.0,26.51603612]
[1641414108309,3.00570527,158.11,158.0,27.01603612]
[1641414108512,3.26570527,158.11,158.0,0.5]
[1641414108715,5.0349031,158.11,157.98,1.5817942]
[1641414109012,9.4904,158.1,157.98,11.0723942]
[1641414109414,9.7504,158.1,157.98,11.0723942]
[1641414109612,29.26370953,158.09,157.98,1.5817942]
[1641414109812,29.26370953,158.09,157.97,1.5817942]
[1641414110014,29.52370953,158.09,157.98,0.5]
[1641414110215,2.49019209,158.08,157.97,2.0817942]
[1641414110414,1.76919783,158.06,157.93,1.5817942]
[1641414110817,33.47508773,158.05,157.93,2.0817942]
[1641414111118,33.73508773,158.05,157.93,2.0817942]
[1641414111321,33.73508773,158.05,157.94,1.5817942]
[1641414111518,34.23508773,158.05,157.94,1.5817942]
[1641414111718,41.74508773,158.05,157.94,1.5817942]
[1641414111917,43.2182467,158.05,157.94,1.5817942]
[1641414112517,9.4988,157.97,157.9,1.5817942]
[1641414112720,2.27032212,157.96,157.9,1.5817942]
[1641414113120,2.53032212,157.96,157.9,1.5817942]
[1641414113524,9.5021,157.92,157.87,1.5817942]
[1641414113724,2.55952167,157.91,157.87,1.5817942]
[1641414114126,2.81952167,157.91,157.87,1.5817942]
[1641414114738,9.5034,157.89,157.83,1.5817942]
[1641414115038,1.5817942,157.87,157.83,1.5817942]
[1641414115240,1.5817942,157.87,157.76,5.07133308]
[1641414115437,1.8417942,157.87,157.76,5.07133308]
[1641414115842,32.9290938,157.87,157.76,5.07133308]
[1641414116038,9.5073,157.82,157.76,5.07133308]
[1641414116243,9.5073,157.82,157.74,15.23522482]
[1641414116439,0.26,157.82,157.74,15.23522482]
[1641414116839,2.84118001,157.83,157.74,15.23522482]
[1641414117039,2.0817942,157.87,157.74,15.23522482]
[1641414117239,11.5861942,157.87,157.74,24.74042482]
[1641414117739,1.5817942,157.87,157.74,32.75042482]
[1641414117940,1.5817942,157.87,157.75,2.98265024]
[1641414118140,1.5817942,157.87,157.78,9.5027]
[1641414118740,1.5817942,157.87,157.78,10.0027]
[1641414118940,1.5817942,157.87,157.78,17.7727]
[1641414119145,1.5817942,157.87,157.78,17.5127]
[1641414119744,1.5817942,157.87,157.79,2.98265024]
[1641414119941,1.5817942,157.87,157.79,12.98495024]
[1641414120141,1.8417942,157.87,157.79,12.98495024]
[1641414120342,3.03606971,157.86,157.79,2.98265024]
[1641414120542,3.29606971,157.86,157.7,30.6562]
[1641414120742,3.29606971,157.86,157.76,0.5]
[1641414121143,3.03606971,157.86,157.76,0.5]
[1641414121341,3.03606971,157.86,157.77,30.92537669]
[1641414121744,3.03606971,157.86,157.77,31.42537669]
[1641414122444,3.03606971,157.86,157.78,3.03818477]
[1641414122844,3.03606971,157.86,157.78,13.04098477]
[1641414123246,1.5817942,157.87,157.78,13.04098477]
[1641414123447,0.26,157.86,157.79,7.51]
[1641414123644,1.8417942,157.87,157.79,7.51]
[1641414123845,1.8417942,157.87,157.79,8.01]
[1641414124248,1.5817942,157.87,157.8,9.00205601]
[1641414124545,28.78931883,157.97,157.82,94.0]
[1641414124745,80.51542962,158.02,157.82,94.0]
[1641414124746,5.36742962,158.02,157.82,101.51]
[1641414124948,5.36742962,158.02,157.83,1.78526399]
[1641414125146,5.36742962,158.02,157.84,7.51]
[1641414125347,2.18312884,158.01,157.84,9.4078334]
[1641414125546,2.18312884,158.01,157.92,9.4947]
[1641414125749,31.95680536,158.01,157.92,9.4947]
[1641414125945,31.95680536,158.01,157.92,9.9947]
[1641414126146,31.95680536,158.01,157.88,7.51]
[1641414127548,41.45270536,158.01,157.88,9.4971]
[1641414127747,48.96270536,158.01,157.81,116.7515]
[1641414127947,0.32435319,158.0,157.81,116.7515]
[1641414128146,2.48241936,157.98,157.81,116.7515]
[1641414128347,7.51,157.97,157.8,5.07133308]
[1641414128549,9.5024,157.9,157.8,43.62434636]
[1641414128747,2.65166915,157.89,157.8,43.62434636]
[1641414129150,2.91166915,157.89,157.8,14.57303308]
[1641414129348,2.91166915,157.89,157.8,9.5017]
[1641414130046,30.59722887,157.89,157.8,9.5017]
[1641414130248,30.59722887,157.89,157.77,30.64081026]
[1641414130449,30.59722887,157.89,157.77,62.81211026]
[1641414130650,2.91166915,157.89,157.77,62.81211026]
[1641414130851,2.91166915,157.89,157.78,1.3978334]
[1641414131251,2.65166915,157.89,157.79,7.51]
[1641414131454,9.4995,157.95,157.81,31.6626]
[1641414131751,31.3033258,157.94,157.82,7.51]
[1641414131950,31.3033258,157.94,157.82,8.01]
[1641414132152,31.3033258,157.94,157.82,11.1169802]
[1641414132750,40.8033258,157.94,157.82,46.55336142]
[1641414132949,31.3033258,157.94,157.82,46.55336142]
[1641414133150,31.3033258,157.94,157.82,46.81336142]
[1641414133350,0.26,157.94,157.82,46.81336142]
[1641414133550,3.01648564,157.93,157.82,46.81336142]
[1641414133950,3.27648564,157.93,157.82,17.5102]
[1641414134151,3.27648564,157.93,157.82,10.0002]
[1641414134351,3.27648564,157.93,157.82,0.5]
[1641414134554,3.27648564,157.93,157.83,3.19663338]
[1641414134953,10.78648564,157.93,157.83,3.69663338]
[1641414135154,31.32168837,157.92,157.83,3.19663338]
[1641414135356,9.505,157.88,157.77,5.07133308]
[1641414135556,2.77464104,157.87,157.79,3.38410614]
[1641414135956,0.26,157.87,157.79,3.38410614]
[1641414136156,31.32168837,157.92,157.79,3.38410614]
[1641414136356,31.32168837,157.92,157.78,26.94113494]
[1641414136559,40.82308837,157.92,157.8,9.5014]
[1641414136858,2.92881708,157.91,157.81,12.98629776]
[1641414137458,2.92881708,157.91,157.81,20.99629776]
[1641414137658,9.4991,157.96,157.81,30.75739776]
[1641414137859,9.4991,157.96,157.81,30.49739776]
[1641414138060,24.13954735,157.95,157.81,30.75739776]
[1641414138462,24.39954735,157.95,157.81,30.49739776]
[1641414138665,9.5007,157.93,157.81,30.49739776]
[1641414138970,0.26,157.93,157.81,0.5]
[1641414139364,0.26,157.93,157.79,10.002]
[1641414139766,0.26,157.93,157.79,0.5]
[1641414139964,2.80416554,157.94,157.76,0.5]
[1641414140165,1.47315897,157.92,157.76,0.5]
[1641414140367,10.29347051,157.91,157.75,7.56549158]
[1641414140669,10.55347051,157.91,157.72,5.07133308]
[1641414140866,29.05992594,157.9,157.72,5.07133308]
[1641414141067,30.61035362,157.8,157.72,5.07133308]
[1641414141468,62.57305362,157.8,157.72,5.07133308]
[1641414141872,63.07305362,157.8,157.72,5.07133308]
[1641414142469,70.58305362,157.8,157.68,5.07133308]
[1641414142669,34.28536476,157.74,157.68,5.07133308]
[1641414142869,34.28536476,157.74,157.68,5.57133308]
[1641414143070,34.54536476,157.74,157.68,5.57133308]
[1641414143270,34.54536476,157.74,157.68,0.5]
[1641414143471,34.54536476,157.74,157.63,15.08303308]
[1641414143670,44.05726476,157.74,157.63,5.57133308]
[1641414144070,44.05726476,157.74,157.63,5.07133308]
[1641414144574,44.55726476,157.74,157.63,5.07133308]
[1641414145475,7.51,157.73,157.61,5.07133308]
[1641414145675,9.5172,157.67,157.61,5.07133308]
[1641414145874,2.92863438,157.66,157.61,5.07133308]
[1641414146073,3.18863438,157.66,157.61,5.07133308]
[1641414147176,9.517,157.66,157.61,5.07133308]
[1641414147377,7.51,157.75,157.58,15.72144294]
[1641414147575,7.51,157.75,157.59,0.5]
[1641414147777,73.143,157.76,157.59,11.30997354]
[1641414147976,73.143,157.76,157.6,1.40737153]
[1641414148202,9.5119,157.74,157.63,9.5119]
[1641414148400,2.8438149,157.75,157.63,0.5]
[1641414149200,2.8438149,157.75,157.58,31.15825915]
[1641414149402,9.5131,157.72,157.62,9.5127]
[1641414149601,28.3957605,157.71,157.62,9.5127]
[1641414149801,28.3957605,157.71,157.62,10.0127]
[1641414150012,28.6557605,157.71,157.62,0.5]
[1641414150401,28.6557605,157.71,157.59,7.66681621]
[1641414150603,38.1694605,157.71,157.59,17.18151621]
[1641414151002,38.1694605,157.71,157.59,0.48]
[1641414151407,38.1694605,157.71,157.57,12.23814929]
[1641414151803,38.1694605,157.71,157.6,5.07133308]
[1641414152408,38.6694605,157.71,157.6,5.57133308]
[1641414152606,28.8957605,157.71,157.6,34.68249256]
[1641414152803,22.5574,157.79,157.6,51.70589256]
[1641414153003,22.5574,157.79,157.6,53.10999694]
[1641414153605,76.2353,157.8,157.6,53.10999694]
[1641414153805,29.29377744,157.79,157.6,53.36999694]
[1641414154009,29.29377744,157.79,157.68,3.58324316]
[1641414154206,3.03277141,157.79,157.68,13.09164316]
[1641414154406,3.03277141,157.79,157.68,13.85164316]
[1641414154608,3.03277141,157.79,157.69,7.51]
[1641414155007,3.03277141,157.79,157.69,8.01]
[1641414155209,3.03277141,157.79,157.71,3.58324316]
[1641414155407,3.03277141,157.79,157.71,4.08324316]
[1641414155606,3.29277141,157.79,157.71,4.08324316]
[1641414155807,3.29277141,157.79,157.72,9.5061]
[1641414156008,3.03277141,157.79,157.72,9.5061]
[1641414156209,3.03277141,157.79,157.73,14.39951638]
[1641414156410,3.37921799,157.9,157.73,14.39951638]
[1641414156611,3.37921799,157.9,157.74,7.51]
[1641414156811,3.37921799,157.9,157.74,8.91648891]
[1641414157109,9.503,157.89,157.78,9.5027]
[1641414157310,3.04294023,157.88,157.78,9.5027]
[1641414157513,3.04294023,157.88,157.78,10.0027]
[1641414157913,9.5009,157.93,157.78,10.0027]
[1641414158111,3.37921799,157.94,157.84,9.499]
[1641414158310,3.37921799,157.94,157.79,7.51]
[1641414158511,3.37921799,157.96,157.84,0.5]
[1641414158914,31.64762979,157.95,157.84,0.5]
[1641414159212,41.14712979,157.95,157.8,8.01]
[1641414159411,41.40712979,157.95,157.85,3.58324316]
[1641414160214,7.51,157.94,157.85,3.58324316]
[1641414160413,9.5042,157.87,157.8,3.58324316]
[1641414160614,2.17413341,157.86,157.8,3.58324316]
[1641414161013,2.43413341,157.86,157.8,3.58324316]
[1641414161413,11.93883341,157.86,157.8,3.58324316]
[1641414161612,11.93883341,157.86,157.77,3.58324316]
[1641414162817,11.93883341,157.86,157.75,3.58324316]
[1641414163114,12.43883341,157.86,157.75,3.58324316]
[1641414163317,19.94883341,157.86,157.75,3.58324316]
[1641414163615,19.94883341,157.86,157.72,3.58324316]
[1641414163815,12.43883341,157.86,157.72,3.58324316]
[1641414164017,9.5047,157.86,157.73,25.30157383]
[1641414164215,26.60047931,157.87,157.73,34.21806274]
[1641414164414,26.60047931,157.87,157.73,34.97806274]
[1641414164616,26.60047931,157.87,157.74,1.40648891]
[1641414164814,26.60047931,157.87,157.77,9.5024]
[1641414165214,2.52366191,157.88,157.77,10.0024]
[1641414165417,3.37921799,157.89,157.78,7.51]
[1641414165617,3.37921799,157.95,157.78,11.09324316]
[1641414165815,3.37921799,157.95,157.8,9.5007]
[1641414166017,3.37921799,157.95,157.8,17.0107]
[1641414166216,29.69380266,157.94,157.81,25.10944256]
[1641414166519,32.37080482,157.94,157.81,25.10944256]
[1641414166723,32.37080482,157.94,157.81,34.60904256]
[1641414166919,32.37080482,157.94,157.81,35.10904256]
[1641414167118,32.37080482,157.94,157.81,35.36904256]
[1641414167318,32.37080482,157.94,157.81,35.10904256]
[1641414167523,31.6674,157.98,157.82,3.58324316]
[1641414167725,9.4984,157.97,157.82,12.49973207]
[1641414167923,3.37921799,158.0,157.86,9.4966]
[1641414168319,3.87921799,158.0,157.86,0.5]
[1641414168520,30.59668324,157.99,157.86,0.5]
[1641414168919,2.65890819,157.92,157.84,3.58324316]
[1641414169721,2.65890819,157.92,157.82,3.58324316]
[1641414169920,2.65890819,157.92,157.82,4.08324316]
[1641414170321,2.65890819,157.92,157.82,3.58324316]
[1641414170722,10.92890819,157.92,157.82,3.58324316]
[1641414171124,20.43010819,157.92,157.82,3.58324316]
[1641414171327,20.43010819,157.92,157.77,3.58324316]
[1641414171527,20.43010819,157.92,157.79,0.5]
[1641414171926,20.43010819,157.92,157.77,3.58324316]
[1641414172127,1.47315897,157.91,157.77,3.58324316]
[1641414172326,2.1933141,157.83,157.75,3.58324316]
[1641414172528,2.4533141,157.83,157.75,3.58324316]
[1641414172736,2.9533141,157.83,157.75,3.58324316]
[1641414172938,27.69447709,157.82,157.75,3.58324316]
[1641414173337,28.45447709,157.82,157.75,3.58324316]
[1641414173539,28.45447709,157.82,157.7,3.58324316]
[1641414173737,31.7001,157.81,157.7,3.58324316]
[1641414173936,2.8664108,157.8,157.7,3.58324316]
[1641414174355,0.26,157.8,157.7,3.58324316]
[1641414174559,35.20447709,157.82,157.69,3.64324316]
[1641414174759,27.69447709,157.82,157.69,3.64324316]
[1641414174960,9.5083,157.8,157.69,4.14324316]
[1641414175362,31.695,157.84,157.71,3.58324316]
[1641414175363,2.78360132,157.81,157.71,3.58324316]
[1641414175565,2.78360132,157.81,157.72,0.06]
[1641414176064,3.04360132,157.81,157.72,0.06]
[1641414176266,12.55120132,157.81,157.72,3.64324316]
[1641414176765,20.06120132,157.81,157.72,3.64324316]
[1641414176964,20.56120132,157.81,157.72,0.06]
[1641414177364,9.5118,157.76,157.72,0.06]
[1641414177570,31.62605751,157.75,157.72,0.06]
[1641414177865,6.06439994,157.74,157.72,0.06]
[1641414178064,6.32439994,157.74,157.72,0.06]
[1641414178265,6.32439994,157.74,157.69,0.06]
[1641414179070,8.47332914,157.74,157.69,0.06]
[1641414179666,27.81937324,157.73,157.69,0.06]
[1641414180067,28.07937324,157.73,157.69,0.06]
[1641414180473,0.26,157.73,157.69,0.06]
[1641414180870,9.5115,157.75,157.67,3.64324316]
[1641414181073,9.5115,157.75,157.67,0.06]
[1641414181271,10.0115,157.75,157.67,0.06]
[1641414181470,28.49898111,157.74,157.67,0.06]
[1641414181669,31.18094603,157.74,157.67,0.06]
[1641414181871,39.2174,157.78,157.68,3.58324316]
[1641414182069,0.26,157.78,157.68,3.58324316]
[1641414182272,7.51,157.8,157.69,0.06]
[1641414182668,7.51,157.8,157.7,3.58324316]
[1641414182869,2.50681551,157.76,157.7,3.58324316]
[1641414183069,31.11161471,157.76,157.7,3.58324316]
[1641414183469,38.88161471,157.76,157.71,3.58324316]
[1641414183674,94.0,157.75,157.65,7.16627387]
[1641414183869,94.5,157.75,157.65,7.16627387]
[1641414184070,2.41388257,157.69,157.65,7.16627387]
[1641414184371,0.26,157.75,157.65,7.16627387]
[1641414184776,0.26,157.75,157.62,0.06]
[1641414184973,8.27,157.78,157.62,0.06]
[1641414185173,2.8619009,157.77,157.62,0.06]
[1641414185373,7.51,157.76,157.62,0.06]
[1641414185608,7.77,157.76,157.62,5.13133308]
[1641414185773,8.27,157.76,157.62,5.13133308]
[1641414185975,8.27,157.76,157.62,5.63133308]
[1641414186176,9.5124,157.73,157.62,5.63133308]
[1641414186375,26.01227382,157.72,157.62,5.63133308]
[1641414186976,26.01227382,157.72,157.62,5.57133308]
[1641414187174,26.01227382,157.72,157.63,0.06]
[1641414187374,25.51227382,157.72,157.63,0.06]
[1641414187778,35.02517382,157.72,157.63,0.06]
[1641414187978,35.28517382,157.72,157.63,0.06]
[1641414188177,1.47315897,157.71,157.63,0.06]
[1641414188377,7.51,157.7,157.63,0.06]
[1641414188577,2.70126715,157.69,157.63,0.06]
[1641414188778,29.82081237,157.69,157.63,0.06]
[1641414188979,9.5177,157.66,157.56,97.97133308]
[1641414189278,2.33207476,157.65,157.56,97.97133308]
[1641414189479,2.59207476,157.65,157.56,97.97133308]
[1641414190077,25.77578126,157.65,157.56,5.07133308]
[1641414190279,25.77578126,157.65,157.54,5.07133308]
[1641414190280,2.43309237,157.6,157.54,5.07133308]
[1641414190476,2.43309237,157.6,157.54,5.57133308]
[1641414191381,9.5195,157.62,157.54,5.57133308]
[1641414191577,31.7293,157.67,157.54,5.57133308]
[1641414191777,3.0,157.71,157.54,5.57133308]
[1641414191977,0.5,157.66,157.54,5.57133308]
[1641414192177,3.0,157.71,157.54,5.57133308]
[1641414192379,27.00779691,157.69,157.55,25.39876684]
[1641414192577,9.5158,157.68,157.55,35.17386684]
[1641414192777,9.5158,157.68,157.55,25.89876684]
[1641414193178,9.5158,157.68,157.56,7.17150562]
[1641414193379,9.5158,157.68,157.56,7.67150562]
[1641414194781,9.5158,157.68,157.56,0.5]
[1641414194983,9.7758,157.68,157.56,10.8240675]
[1641414195182,9.5158,157.68,157.56,10.8240675]
[1641414195383,72.921,157.76,157.56,11.5840675]
[1641414195583,72.921,157.76,157.56,19.0940675]
[1641414195984,72.921,157.76,157.56,28.6088675]
[1641414196284,29.28102962,157.83,157.56,28.6088675]
[1641414196285,25.59853265,157.8,157.57,10.73222]
[1641414196488,2.1438682,157.8,157.58,7.51]
[1641414196786,2.1438682,157.8,157.58,35.80980929]
[1641414196985,2.1438682,157.8,157.59,176.02146705]
[1641414197185,2.1438682,157.8,157.66,0.38784773]
[1641414197385,2.1438682,157.8,157.69,9.5048]
[1641414197587,2.1438682,157.8,157.7,11.11864991]
[1641414197986,2.1438682,157.8,157.7,11.87864991]
[1641414198386,9.5055,157.85,157.7,21.38414991]
[1641414198786,9.5055,157.85,157.7,0.5]
[1641414198994,9.5055,157.85,157.69,0.5]
[1641414199487,9.5105,157.76,157.67,0.5]
[1641414199688,2.33085107,157.75,157.67,5.57133308]
[1641414200088,2.59085107,157.75,157.67,5.57133308]
[1641414200709,2.59085107,157.75,157.67,5.07133308]
[1641414200912,2.59085107,157.75,157.67,0.5]
[1641414201311,111.4723,157.84,157.67,0.5]
[1641414201516,0.06,157.83,157.65,8.01]
[1641414201712,28.96077144,157.76,157.65,8.01]
[1641414202113,28.96077144,157.76,157.65,0.5]
[1641414202517,31.65622693,157.76,157.65,7.16702506]
[1641414202716,41.16702693,157.76,157.65,7.16702506]
[1641414202917,41.16702693,157.76,157.65,7.66702506]
[1641414203423,41.66702693,157.76,157.65,7.16702506]
[1641414203617,7.51,157.75,157.6,12.23835814]
[1641414203819,7.16702506,157.65,157.6,12.23835814]
[1641414204025,7.42702506,157.65,157.6,12.23835814]
[1641414204218,7.16702506,157.65,157.6,12.23835814]
[1641414204417,7.16702506,157.65,157.55,5.07133308]
[1641414204617,7.16702506,157.65,157.55,30.02090882]
[1641414204821,7.16702506,157.65,157.55,5.07133308]
[1641414205218,2.67916105,157.64,157.55,5.07133308]
[1641414205418,2.67916105,157.64,157.55,5.57133308]
[1641414205723,7.16702506,157.65,157.55,5.57133308]
[1641414206118,7.16702506,157.65,157.55,15.08683308]
[1641414206318,7.16702506,157.65,157.55,5.57133308]
[1641414206923,0.06,157.64,157.55,5.57133308]
[1641414207118,2.99911429,157.63,157.55,5.07133308]
[1641414207327,0.06,157.62,157.48,5.07133308]
[1641414207519,7.57,157.62,157.48,5.07133308]
[1641414207725,1.47315897,157.61,157.48,5.07133308]
[1641414207919,25.87688129,157.6,157.48,5.07133308]
[1641414208118,25.87688129,157.6,157.45,76.5135]
[1641414208119,26.19688129,157.6,157.45,76.5135]
[1641414208322,9.5248,157.53,157.44,5.07133308]
[1641414208520,2.15438827,157.52,157.44,5.07133308]
[1641414208922,2.41438827,157.52,157.44,5.07133308]
[1641414209224,27.34760305,157.52,157.44,5.07133308]
[1641414209418,36.87270305,157.52,157.41,14.59713308]
[1641414209620,36.87270305,157.52,157.41,5.07133308]
[1641414210020,45.85586202,157.52,157.38,5.07133308]
[1641414210221,46.35586202,157.52,157.38,5.07133308]
[1641414210621,0.06,157.51,157.38,5.07133308]
[1641414210821,9.5294,157.45,157.38,5.07133308]
[1641414211121,9.5294,157.45,157.35,76.4625]
[1641414211122,0.26,157.45,157.35,5.05133308]
[1641414211321,2.16559126,157.46,157.36,0.5]
[1641414211525,2.16559126,157.46,157.35,5.55133308]
[1641414211725,2.16559126,157.46,157.38,9.5274]
[1641414211921,2.16559126,157.46,157.38,10.0274]
[1641414212123,0.06,157.51,157.39,10.19761673]
[1641414212422,0.06,157.51,157.39,10.69761673]
[1641414213023,2.89741884,157.5,157.39,10.69761673]
[1641414213228,4.18888527,157.56,157.4,94.0]
[1641414213425,7.51,157.58,157.41,94.0]
[1641414213627,3.0,157.6,157.42,7.51]
[1641414213830,83.1014,157.67,157.48,9.521]
[1641414214035,3.0,157.66,157.48,7.51]
[1641414214231,3.0,157.66,157.49,33.13423005]
[1641414214431,23.78925322,157.69,157.5,7.51]
[1641414214634,72.6876,157.75,157.5,9.30672199]
[1641414214831,72.6876,157.75,157.59,9.5148]
[1641414215034,72.6876,157.75,157.58,7.51]
[1641414215434,2.67588837,157.74,157.58,39.7207]
[1641414215634,30.83716141,157.74,157.58,51.14561401]
[1641414215933,30.83716141,157.74,157.58,19.43491401]
[1641414216133,30.83716141,157.74,157.59,9.5149]
[1641414216435,2.67588837,157.74,157.6,7.51]
[1641414216635,116.9853,157.8,157.6,7.51]
[1641414216836,0.5,157.8,157.6,9.67853005]
[1641414217236,0.5,157.8,157.61,1.40853005]
[1641414217435,0.5,157.8,157.66,23.08646688]
[1641414217436,2.36934365,157.8,157.66,23.08646688]
[1641414217635,2.36934365,157.8,157.67,7.51]
[1641414217937,31.87,157.85,157.67,8.01]
[1641414218138,170.01948488,157.92,157.67,10.06637778]
[1641414218139,31.87,157.91,157.67,10.06637778]
[1641414218336,9.5038,157.9,157.73,31.68]
[1641414218535,8.36028488,157.92,157.74,7.51]
[1641414218737,9.41604386,157.95,157.74,7.51]
[1641414218936,2.34456623,157.94,157.75,16.84096582]
[1641414219137,2.34456623,157.94,157.84,9.4999]
[1641414219757,2.34456623,157.94,157.8,7.51]
[1641414219957,2.34456623,157.94,157.8,8.01]
[1641414220457,12.34626623,157.94,157.8,8.01]
[1641414220956,11.84626623,157.94,157.8,8.01]
[1641414221158,6.77660944,157.95,157.8,8.01]
[1641414221356,6.77660944,157.95,157.8,8.27]
[1641414221561,6.77660944,157.95,157.8,9.67853005]
[1641414221757,6.77660944,157.95,157.8,19.18053005]
[1641414221960,6.77660944,158.04,157.8,19.18053005]
[1641414222559,6.77660944,158.04,157.81,93.91]
[1641414222858,6.77660944,158.04,157.85,93.91]
[1641414223057,6.77660944,158.04,157.92,31.6367]
[1641414223257,6.77660944,158.04,157.94,22.80964278]
[1641414223458,8.36028488,158.07,157.94,22.80964278]
[1641414223459,8.36028488,158.07,157.95,7.51]
[1641414223667,8.36028488,158.12,158.04,3.88532472]
[1641414224260,3.0,158.14,158.04,3.88532472]
[1641414224462,6.89408754,158.18,158.04,21.00311464]